{"text_format":"1","workbook":"xlsx","n_sheets":5,"sheets":["Новини","Змiст","ProVET аква","Природа","Загальне замовлення"],"not_rendered":{"charts":0,"images":90,"macros":1,"external_links":0,"defined_names":0,"comments":0,"pivot_tables":0},"unopened":[],"bounds":{"document_bytes":16777216,"sheet_cells":100000,"rows_first":2000,"rows_last":500,"rows_between":2000,"halvings":0,"cell_chars":16384,"cell_head_chars":4096},"cells_cut":0,"cells_raw":0,"read":"whole","date_system":"1900"}

{"sheet":"Новини","index":0,"n_rows":4,"n_cols":7,"rows_kept":4,"cut":false,"hidden":false,"merged":[]}
[]
[null,null,null,null,null,null,"suziria.ua"]
[null,null,null,null,null,null,"0 800 21 82 99"]
[null,null,null,null,null,null,"feedback@suziria.ua"]

{"sheet":"Змiст","index":1,"n_rows":12,"n_cols":7,"rows_kept":12,"cut":false,"hidden":false,"merged":[]}
[]
[null,null,null,null,null,null,"suziria.ua"]
[null,null,null,null,null,null,"0 800 21 82 99"]
[null,null,null,null,null,null,"feedback@suziria.ua"]
[]
[]
[null,null,"ПРАЙС-ЛИСТ для формування замовлення"]
[null,"Зміст"]
["№","Назва сторінки","Посилання на сторінку","Примітки","Запитання"]
[1,"ProVET аква","ProVET аква"]
[2,"Природа","Природа"]
[3,"Загальне замовлення","Загальне замовлення"]

{"sheet":"ProVET аква","index":2,"n_rows":116,"n_cols":10,"rows_kept":116,"cut":false,"hidden":false,"merged":[]}
[]
[null,null,null,null,null,null,"suziria.ua"]
[null,null,null,null,null,null,"0 800 21 82 99"]
[null,null,null,null,null,null,"feedback@suziria.ua"]
[]
["Зображення","Код","Артикул","Номенклатура","Наявність","Категорія","Ціна опт.","Ціна РРЦ","Замовлення, шт.","Сума, грн."]
[null,null,null,null,null,null,null,null,null,{"$f":"SUM(J8:J116)","v":0}]
[null,1111126545,"PR740548 *****","Акваріум овальний 41х25х34 см 26 л","Менше 10","Акваріуми та акваріумні комплекти",160,0,0,{"$f":"G8*I8","v":0}]
[null,11070,"PR740574","Акваріум Природа кутовий 57x57x45см 85л","Менше 10","Акваріуми та акваріумні комплекти",2754.65,3581,0,{"$f":"G9*I9","v":0}]
[null,9356,"PR740575","Акваріум Природа кутовий 70x70x50см 142л","Менше 10","Акваріуми та акваріумні комплекти",4964.58,6454,0,{"$f":"G10*I10","v":0}]
[null,11025,"PR740556 (506401)","Акваріум Природа овальний 100х40х50см 190л","Менше 10","Акваріуми та акваріумні комплекти",5097.84,6627,0,{"$f":"G11*I11","v":0}]
[null,10400,"PR740557","Акваріум Природа овальний 120x40x50см 220л","Менше 10","Акваріуми та акваріумні комплекти",5877.33,7641,0,{"$f":"G12*I12","v":0}]
[null,5884,"PR740549","Акваріум Природа овальний 50x30x30см 40л","Менше 10","Акваріуми та акваріумні комплекти",1095.82,1424,0,{"$f":"G13*I13","v":0}]
[null,10974,"PR740550","Акваріум Природа овальний 50x30x40см 52л","Менше 10","Акваріуми та акваріумні комплекти",1358.29,1766,0,{"$f":"G14*I14","v":0}]
[null,5885,"PR740551","Акваріум Природа овальний 60x30x30см 54л","Більше 10","Акваріуми та акваріумні комплекти",1315.85,1710,0,{"$f":"G15*I15","v":0}]
[null,10975,"PR740552","Акваріум Природа овальний 60x30x40см 60л","Менше 10","Акваріуми та акваріумні комплекти",1554.27,2020,0,{"$f":"G16*I16","v":0}]
[null,5886,"PR740554","Акваріум Природа овальний 80x35x40см 100л","Менше 10","Акваріуми та акваріумні комплекти",2614.4499999999998,3398,0,{"$f":"G17*I17","v":0}]
[null,10976,"PR740555","Акваріум Природа овальний 80x35x45см 110л","Менше 10","Акваріуми та акваріумні комплекти",2869.2,3730,0,{"$f":"G18*I18","v":0}]
[null,6970,"PR740570","Акваріум Природа прямий 100x40x50см 200л","Менше 10","Акваріуми та акваріумні комплекти",5049.4399999999996,6565,0,{"$f":"G19*I19","v":0}]
[null,1111133642,"PR740571","Акваріум Природа прямий 100x40x60см 235л","Немає в наявності","Акваріуми та акваріумні комплекти",6225.84,8094,0,{"$f":"G20*I20","v":0}]
[null,6969,"PR740572","Акваріум Природа прямий 120x40x50см 240л","Менше 10","Акваріуми та акваріумні комплекти",5843.44,7596,0,{"$f":"G21*I21","v":0}]
[null,7257,"PR740573","Акваріум Природа прямий 150x50x60см 450л","Менше 10","Акваріуми та акваріумні комплекти",11466.64,14907,0,{"$f":"G22*I22","v":0}]
[null,4666,"PR740559","Акваріум Природа прямий 36x23x27см 22л","Більше 10","Акваріуми та акваріумні комплекти",635.65,826,0,{"$f":"G23*I23","v":0}]
[null,7859,"PR740560","Акваріум Природа прямий 40x25x34см 34л","Немає в наявності","Акваріуми та акваріумні комплекти",856.01,1113,0,{"$f":"G24*I24","v":0}]
[null,4649,"PR740562","Акваріум Природа прямий 50x30x36см 54л","Більше 10","Акваріуми та акваріумні комплекти",1048.79,1363,0,{"$f":"G25*I25","v":0}]
[null,6728,"PR740563","Акваріум Природа прямий 50x30x40см 60л","Більше 10","Акваріуми та акваріумні комплекти",1221.27,1588,0,{"$f":"G26*I26","v":0}]
[null,5560,"PR740564","Акваріум Природа прямий 60x30x36см 65л","Менше 10","Акваріуми та акваріумні комплекти",1398.48,1818,0,{"$f":"G27*I27","v":0}]
[null,6727,"PR740565","Акваріум Природа прямий 60x30x42см 72л","Більше 10","Акваріуми та акваріумні комплекти",1642.75,2136,0,{"$f":"G28*I28","v":0}]
[null,4807,"PR740567","Акваріум Природа прямий 80x35x42см 112л","Менше 10","Акваріуми та акваріумні комплекти",2376.81,3089,0,{"$f":"G29*I29","v":0}]
[null,5206,"PR740568","Акваріум Природа прямий 80x35x50см 140л","Менше 10","Акваріуми та акваріумні комплекти",2844.25,3698,0,{"$f":"G30*I30","v":0}]
[null,1111133643,"PR740569","Акваріум Природа прямий 80x35x60см 170л","Менше 10","Акваріуми та акваріумні комплекти",4344.82,5648,0,{"$f":"G31*I31","v":0}]
[null,1111160539,"PR241733","Акваріумний комплект Природа Неон Led овальний 50x30x40см 52л","Менше 10","Акваріуми та акваріумні комплекти",2591.4299999999998,3370,0,{"$f":"G32*I32","v":0}]
[null,1111160541,"PR241731","Акваріумний комплект Природа Неон Led овальний 60х30х40см 62л","Немає в наявності","Акваріуми та акваріумні комплекти",2674.16,3477,0,{"$f":"G33*I33","v":0}]
[null,1111189294,"PR241935","Б/В Кришка-світильник Природа Led Light для акваріума овальна 60х30см","Менше 10","Кришки для акваріума",632.4,0,0,{"$f":"G34*I34","v":0}]
[null,1111189295,"PR241933","Б/В Кришка-світильник Природа Led Light для акваріума овальна 80х35см","Менше 10","Кришки для акваріума",874.8,0,0,{"$f":"G35*I35","v":0}]
[null,1111189271,"PR241935","Б/В, П/РЕМ. Кришка-світильник Природа Led Light д/акв. овальна 60х30см","Менше 10","Кришки для акваріума",632.4,0,0,{"$f":"G36*I36","v":0}]
[null,1111198270,"PR740629","БЕЗ ПАК Піддон Природа/акварпрямий 150x50х3см","Менше 10","Підставки та піддони",625.32000000000005,0,0,{"$f":"G37*I37","v":0}]
[null,1111187727,"PR241959","БИТ. Піддон Природа під акваріум овальний 60×30см","Менше 10","Підставки та піддони",102,0,0,{"$f":"G38*I38","v":0}]
[null,1111189291,"PR740635","БІЛА ПОДР.НА ЛИЦ.ЧАСТ.Піддон Природа п/акв. кут. 70x70х2,5см","Менше 10","Підставки та піддони",306,0,0,{"$f":"G39*I39","v":0}]
[null,1111191750,"PR242007","Брак.завод Кришка-світильник Природа Led Light д/аквар кут89х89см","Менше 10","Кришки для акваріума",1087.5,0,0,{"$f":"G40*I40","v":0}]
[null,1111188741,"PR740620","Відсут.пак Піддон Природа під акваріум овальний 120x40х2,7 см","Менше 10","Підставки та піддони",424.32,0,0,{"$f":"G41*I41","v":0}]
[null,1111189264,"PR740620","ДЕФОРМ. ПЛАСТ. Піддон Природа п/акв. овальний 120x40х2,7 см","Менше 10","Підставки та піддони",424.32,0,0,{"$f":"G42*I42","v":0}]
[null,1111121801,"Природа*****","Кришка ЛЮКС 40х25 см ПР (люмінесцентна)","Менше 10","Кришки для акваріума",284.94,0,0,{"$f":"G43*I43","v":0}]
[null,1111140217,"PR740691*****","Кришка ЛЮКС 40х25 см пряма (люмінесцентна) НОВА","Більше 10","Кришки для акваріума",650.52,845.68,0,{"$f":"G44*I44","v":0}]
[null,1111138646,"PR740707*****","Кришка ЛЮКС 60х30 см овальна НОВА","Менше 10","Кришки для акваріума",857.92,1115.3,0,{"$f":"G45*I45","v":0}]
[null,1111138644,"PR740726*****СПЕЦЦЕНА","Кришка ЛЮКС 80х35 см пряма НОВА","Менше 10","Кришки для акваріума",819.35,1521.65,0,{"$f":"G46*I46","v":0}]
[null,1111159072,"PR241466*****","Кришка-світильник Природа LED LIGHT для акваріума 50х30 ОВ","Немає в наявності","Кришки для акваріума",702.37,1304.4100000000001,0,{"$f":"G47*I47","v":0}]
[null,1111159074,"PR241464*****","Кришка-світильник Природа LED LIGHT для акваріума 60х30 ОВ","Менше 10","Кришки для акваріума",1001.78,1302.32,0,{"$f":"G48*I48","v":0}]
[null,1111159073,"PR241465*****","Кришка-світильник Природа LED LIGHT для акваріума 60х30 ПР","Немає в наявності","Кришки для акваріума",1002,1302.5999999999999,0,{"$f":"G49*I49","v":0}]
[null,1111162260,"PR241955","Кришка-світильник Природа Led Light для акваріума кутова 57х57 см","Більше 10","Кришки для акваріума",1620,2106,0,{"$f":"G50*I50","v":0}]
[null,1111162475,"PR241958","Кришка-світильник Природа Led Light для акваріума кутова 70х70см","Більше 10","Кришки для акваріума",1618,2103.4,0,{"$f":"G51*I51","v":0}]
[null,1111162963,"PR242007","Кришка-світильник Природа Led Light для акваріума кутова 89х89 см","Менше 10","Кришки для акваріума",2175,2827.5,0,{"$f":"G52*I52","v":0}]
[null,1111159078,"PR241460","Кришка-світильник Природа Led Light для акваріума овальна 100х40 см","Менше 10","Кришки для акваріума",2494.41,3243,0,{"$f":"G53*I53","v":0}]
[null,1111159080,"PR241458","Кришка-світильник Природа Led Light для акваріума овальна 120x40см","Менше 10","Кришки для акваріума",2584.86,3360,0,{"$f":"G54*I54","v":0}]
[null,1111159082,"PR241456","Кришка-світильник Природа Led Light для акваріума овальна 150x50см","Менше 10","Кришки для акваріума",3352.68,4358,0,{"$f":"G55*I55","v":0}]
[null,1111162200,"PR241939","Кришка-світильник Природа Led Light для акваріума овальна 40х25см","Менше 10","Кришки для акваріума",810,1055,0,{"$f":"G56*I56","v":0}]
[null,1111163638,"PR241937","Кришка-світильник Природа Led Light для акваріума овальна 50х30см","Більше 10","Кришки для акваріума",1005,1307,0,{"$f":"G57*I57","v":0}]
[null,1111162326,"PR241935","Кришка-світильник Природа Led Light для акваріума овальна 60х30см","Менше 10","Кришки для акваріума",1264.8,1644,0,{"$f":"G58*I58","v":0}]
[null,1111164462,"PR241933","Кришка-світильник Природа Led Light для акваріума овальна 80х35см","Більше 10","Кришки для акваріума",1749.6,2274,0,{"$f":"G59*I59","v":0}]
[null,1111159077,"PR241461","Кришка-світильник Природа Led Light для акваріума пряма 100x40см","Менше 10","Кришки для акваріума",2495,3243,0,{"$f":"G60*I60","v":0}]
[null,1111159079,"PR241459","Кришка-світильник Природа Led Light для акваріума пряма 120x40см","Більше 10","Кришки для акваріума",2585,3361,0,{"$f":"G61*I61","v":0}]
[null,1111159081,"PR241457","Кришка-світильник Природа Led Light для акваріума пряма 150x50см","Менше 10","Кришки для акваріума",3352.5,4358,0,{"$f":"G62*I62","v":0}]
[null,1111162199,"PR241940","Кришка-світильник Природа Led Light для акваріума пряма 40х25см","Менше 10","Кришки для акваріума",810,1054,0,{"$f":"G63*I63","v":0}]
[null,1111163637,"PR241938","Кришка-світильник Природа Led Light для акваріума пряма 50х30см","Менше 10","Кришки для акваріума",1005,1307,0,{"$f":"G64*I64","v":0}]
[null,1111162325,"PR241936","Кришка-світильник Природа Led Light для акваріума пряма 60х30см","Більше 10","Кришки для акваріума",1264.8,1644,0,{"$f":"G65*I65","v":0}]
[null,1111164461,"PR241934","Кришка-світильник Природа Led Light для акваріума пряма 80х35см","Більше 10","Кришки для акваріума",1749.6,2274,0,{"$f":"G66*I66","v":0}]
[null,1111113909,"PR740687","Кришка-світильник Природа для акваріума кругла 21,5см","Більше 10","Кришки для акваріума",424.99,552,0,{"$f":"G67*I67","v":0}]
[null,1111113166,"PR740677","Кришка-світильник Природа для акваріума овальна 40х25см","Немає в наявності","Кришки для акваріума",472.74,615,0,{"$f":"G68*I68","v":0}]
[null,1111135983,"PR740685","Кришка-світильник Природа для акваріума овальна 60х30см","Більше 10","Кришки для акваріума",743.8,967,0,{"$f":"G69*I69","v":0}]
[null,1111111519,"PR740681","Кришка-світильник Природа для акваріума пряма 40х25см","Більше 10","Кришки для акваріума",472.74,615,0,{"$f":"G70*I70","v":0}]
[null,1111136683,"PR740686","Кришка-світильник Природа для акваріума пряма 60х30см","Більше 10","Кришки для акваріума",743.8,967,0,{"$f":"G71*I71","v":0}]
[null,1111197946,"PR241937","НЕ ПРАЦ-Є/БЛОК ЖИВ-НЯ Кришка-світильник ПрирLed Lightд/акв овал50х30см","Менше 10","Кришки для акваріума",502.5,0,0,{"$f":"G72*I72","v":0}]
[null,1111196647,"PR241939","НЕ ТОВ ВИД Криш-світильник Природа Led Light д/аквар. овальна 40х25см","Менше 10","Кришки для акваріума",405,0,0,{"$f":"G73*I73","v":0}]
[null,1111187101,"PR740552","НЕ ТОВ. ВИГЛ. Акваріум Природа овальний 60x30x40см 60л","Менше 10","Акваріуми та акваріумні комплекти",777.14,0,0,{"$f":"G74*I74","v":0}]
[null,1111187091,"PR740635","НЕ ТОВ.ВИГЛ.Піддон Природа під акваріум кутовий 70x70х2,5 см","Менше 10","Підставки та піддони",306,0,0,{"$f":"G75*I75","v":0}]
[null,1111195579,"PR740573","НЕЗНАЧН. СКОЛ,Акваріум Природа прямий 150x50x60см 450л","Менше 10","Акваріуми та акваріумні комплекти",5733.36,0,0,{"$f":"G76*I76","v":0}]
[null,1111188739,"PR241459","Некомплет Кришка-світ Природа Led Light д/акв пряма 120x40см","Менше 10","Кришки для акваріума",1292.5,0,0,{"$f":"G77*I77","v":0}]
[null,1111189292,"PR740615","НЕТОВ. ВИГЛ. Піддон п/акв. Природа прямий 100x40х2,9см","Менше 10","Підставки та піддони",368.9,0,0,{"$f":"G78*I78","v":0}]
[null,1111189774,"PR242071","Нетов.вигл,бруд.Піддон Природа під акваріум прямий 50х30х2,5см","Менше 10","Підставки та піддони",96.75,0,0,{"$f":"G79*I79","v":0}]
[null,1111189620,"PR740567","Нетов.вигл.Акваріум Природа прямий 80x35x42см 112л","Менше 10","Акваріуми та акваріумні комплекти",1188.4100000000001,0,0,{"$f":"G80*I80","v":0}]
[null,1111196324,"PR740629","НЕТОВ.ВИГЛ.Піддон Природа під акваріум прямий 150x50х3см","Менше 10","Підставки та піддони",625.32000000000005,0,0,{"$f":"G81*I81","v":0}]
[null,1111196325,"PR241960","НЕТОВ.ВИГЛ.Піддон Природа під акваріум прямий 60х30х2,5см","Менше 10","Підставки та піддони",102,0,0,{"$f":"G82*I82","v":0}]
[null,1111189272,"PR241940","НТВ, Б/В Кришка-світильник Природа Led Light д/акв.пряма 40х25см","Менше 10","Кришки для акваріума",405,0,0,{"$f":"G83*I83","v":0}]
[null,1111125109,"PR740580*****","Палюдаріум 80х35х48(30) см 84 л","Менше 10","Акваріуми та акваріумні комплекти",760.4,0,0,{"$f":"G84*I84","v":0}]
[null,1111123916,"PR740640_ord","Піддон під акваріум Природа кутовий 89x89см","Менше 10","Підставки та піддони",700,1300,0,{"$f":"G85*I85","v":0}]
[null,1111113632,"PR740626","Піддон під акваріум Природа овальний 150x50х3 см","Більше 10","Підставки та піддони",1250.56,1626,0,{"$f":"G86*I86","v":0}]
[null,1111113627,"PR740615","Піддон під акваріум Природа прямий 100x40х2,9см","Більше 10","Підставки та піддони",737.8,959,0,{"$f":"G87*I87","v":0}]
[null,1111114513,"PR740632","Піддон Природа під акваріум кутовий 57x57х2,2см","Більше 10","Підставки та піддони",532,691.6,0,{"$f":"G88*I88","v":0}]
[null,1111114514,"PR740635","Піддон Природа під акваріум кутовий 70x70х2,5 см","Більше 10","Підставки та піддони",612,795.6,0,{"$f":"G89*I89","v":0}]
[null,1111113630,"PR740620","Піддон Природа під акваріум овальний 120x40х2,7 см","Більше 10","Підставки та піддони",848.64,1103,0,{"$f":"G90*I90","v":0}]
[null,1111163640,"PR242070","Піддон Природа під акваріум овальний 50х30см","Менше 10","Підставки та піддони",193.5,252,0,{"$f":"G91*I91","v":0}]
[null,1111162620,"PR241959","Піддон Природа під акваріум овальний 60×30см","Більше 10","Підставки та піддони",204,265,0,{"$f":"G92*I92","v":0}]
[null,1111113626,"PR740529","Піддон Природа під акваріум овальний 80x35х2,8см","Більше 10","Підставки та піддони",363,471.9,0,{"$f":"G93*I93","v":0}]
[null,1111162202,"PR241941","Піддон Природа під акваріум овальний новий 40х25см","Більше 10","Підставки та піддони",145,188.5,0,{"$f":"G94*I94","v":0}]
[null,1111113629,"PR740623","Піддон Природа під акваріум прямий 120x40х2,7см","Менше 10","Підставки та піддони",848.64,1103,0,{"$f":"G95*I95","v":0}]
[null,1111113631,"PR740629","Піддон Природа під акваріум прямий 150x50х3см","Більше 10","Підставки та піддони",1250.56,1626,0,{"$f":"G96*I96","v":0}]
[null,1111163639,"PR242071","Піддон Природа під акваріум прямий 50х30х2,5см","Більше 10","Підставки та піддони",193.5,252,0,{"$f":"G97*I97","v":0}]
[null,1111162619,"PR241960","Піддон Природа під акваріум прямий 60х30х2,5см","Більше 10","Підставки та піддони",204,265,0,{"$f":"G98*I98","v":0}]
[null,1111113625,"PR740535","Піддон Природа під акваріум прямий 80x35х2,8см","Більше 10","Підставки та піддони",363,471.9,0,{"$f":"G99*I99","v":0}]
[null,1111162201,"PR241942","Піддон Природа під акваріум прямий новий 40х25см","Більше 10","Підставки та піддони",145,188.5,0,{"$f":"G100*I100","v":0}]
[null,1111189293,"PR740629","ПОДР. ЗНИЗУ, БРУДН.Піддон Природа п/акв. прям.150x50х3см","Менше 10","Підставки та піддони",625.28,0,0,{"$f":"G101*I101","v":0}]
[null,1111189273,"PR241456","ПОДР. Кришка-світильник Природа Led Light д/акв. овальна 150x50см","Менше 10","Кришки для акваріума",1676.34,0,0,{"$f":"G102*I102","v":0}]
[null,1111189267,"PR740640_ord","ПОДР., БРУДН. Піддон п/акв. Природа кутовий 89x89см","Менше 10","Підставки та піддони",350,0,0,{"$f":"G103*I103","v":0}]
[null,1111189268,"PR740529","ПОДР., БРУДН. Піддон Природа п/акв. овальний 80x35х2,8см","Менше 10","Підставки та піддони",181.5,0,0,{"$f":"G104*I104","v":0}]
[null,1111189263,"PR740620","ПОДР., БРУДН. Піддон Природа під акв. овальний 120x40х2,7 см","Менше 10","Підставки та піддони",424.32,0,0,{"$f":"G105*I105","v":0}]
[null,1111189262,"PR740626","ПОДР., ТРІСН.1 КУТ, Піддон п/акв. Природа овальний 150x50х3 см","Менше 10","Підставки та піддони",625.28,0,0,{"$f":"G106*I106","v":0}]
[null,1111189274,"PR241936","ПОДР.,БРУДН.Б/В Кришка-світильник Природа Led Light д/акв. пр. 60х30см","Менше 10","Кришки для акваріума",632.4,0,0,{"$f":"G107*I107","v":0}]
[null,1111189261,"PR740629","ПОДР.,ТРІСН.1 КУТ, Піддон Природа п/акв. прямий 150x50х3см","Менше 10","Підставки та піддони",625.28,0,0,{"$f":"G108*I108","v":0}]
[null,1111191962,"PR241933","ПОДРЯП Кришка-світильник Природа Led Light д/акваріума овальна 80х35см","Менше 10","Кришки для акваріума",874.8,0,0,{"$f":"G109*I109","v":0}]
[null,1111195483,"PR740609","ПОТЕРТОСТІ Піддон Природа під акваріум овальний 100x40х2,9см","Менше 10","Підставки та піддони",368.94,0,0,{"$f":"G110*I110","v":0}]
[null,1111196563,"PR740632","ПОШК. КУТ Піддон Природа під акваріум кутовий 57x57х2,2см","Менше 10","Підставки та піддони",266.04000000000002,0,0,{"$f":"G111*I111","v":0}]
[null,10111,"PR740602","Тераріум Природа для рептилій плазунів та комах скляний 60x35x40см","Менше 10","Тераріуми",4100,5330,0,{"$f":"G112*I112","v":0}]
[null,1111189290,"PR740623","ТРІСН. 1 КУТ Піддон Природа під акваріум прямий 120x40х2,7см","Менше 10","Підставки та піддони",424.32,0,0,{"$f":"G113*I113","v":0}]
[null,1111189289,"PR740535","ТРІСН.1 КУТ Піддон Природа під акваріум прямий 80x35х2,8см","Менше 10","Підставки та піддони",181.5,0,0,{"$f":"G114*I114","v":0}]
[null,1111189266,"PR740640_ord","ТРІСН.1КУТ, ПОДР. Піддон п/акв. Природа кутовий 89x89см","Менше 10","Підставки та піддони",350,0,0,{"$f":"G115*I115","v":0}]
[null,1111188738,"PR740615","Тріснута Піддон під акваріум Природа прямий 100x40х2,9см","Менше 10","Підставки та піддони",368.9,0,0,{"$f":"G116*I116","v":0}]

{"sheet":"Природа","index":3,"n_rows":86,"n_cols":10,"rows_kept":86,"cut":false,"hidden":false,"merged":[]}
[]
[null,null,null,null,null,null,"suziria.ua"]
[null,null,null,null,null,null,"0 800 21 82 99"]
[null,null,null,null,null,null,"feedback@suziria.ua"]
[]
["Зображення","Код","Артикул","Номенклатура","Наявність","Категорія","Ціна опт.","Ціна РРЦ","Замовлення, шт.","Сума, грн."]
[null,null,null,null,null,null,null,null,null,{"$f":"SUM(J8:J86)","v":0}]
[null,1111127415,"PR740760/55К СПЕЦЦЕНА****","Акрополь 20х13х10 см","Менше 10","Декорації для акваріума",97.87,228.31,0,{"$f":"G8*I8","v":0}]
[null,1111137701,"PR240106/56К*****","Актинія 22х15х17 см","Менше 10","Декорації для акваріума",154.51,200.87,0,{"$f":"G9*I9","v":0}]
[null,7524,"PR740761/01К**** СПЕЦЦЕНА","Амфора велика 14х24 см","Менше 10","Декорації для акваріума",55.85,130.27000000000001,0,{"$f":"G10*I10","v":0}]
[null,22593,"PR740762/02К*****СПЕЦЦЕНА","Амфора єгипетська 12х17 см","Менше 10","Декорації для акваріума",49.93,116.47,0,{"$f":"G11*I11","v":0}]
[null,7891,"PR740763/03К*****","Амфора міні 9х11 см","Менше 10","Декорації для акваріума",64.05,83.26,0,{"$f":"G12*I12","v":0}]
[null,22720,"PR740764/04К*****СПЕЦЦЕНА","Амфора морська на камені 12х9 см","Менше 10","Декорації для акваріума",33.11,80.45,0,{"$f":"G13*I13","v":0}]
[null,7690,"PR740765/05К*****СПЕЦЦЕНА","Амфора середня 12х17 см","Менше 10","Декорації для акваріума",42.25,98.58,0,{"$f":"G14*I14","v":0}]
[null,1111189249,"PR740899","БЕЗ 1 СТІНКИ, Підст. Природа ПП під акваріум б/дверей чорна 80x35x70см","Менше 10","Підставки та піддони",1138.28,0,0,{"$f":"G15*I15","v":0}]
[null,1111187840,"PR241232","БИТ.  Декорація Природа Піраміда Майя для акваріума 11,5х11х8см","Менше 10","Декорації для акваріума",115,0,0,{"$f":"G16*I16","v":0}]
[null,1111187639,"PR241106","БИТ. Декорація Природа Вулкан для акваріума 11x6x8см","Менше 10","Декорації для акваріума",117.75,0,0,{"$f":"G17*I17","v":0}]
[null,7590,"PR740790/33К*****","Будиночок під черепицею 6х11 см","Менше 10","Декорації для акваріума",73.56,95.63,0,{"$f":"G18*I18","v":0}]
[null,8129,"PR740766/08К*****СПЕЦЦЕНА","Вежа велика подвійна15х26 см","Менше 10","Декорації для акваріума",95.98,223.91,0,{"$f":"G19*I19","v":0}]
[null,8021,"PR740769/11К*****","Вежа з горщечком 15х27 см","Менше 10","Декорації для акваріума",105.53,137.18,0,{"$f":"G20*I20","v":0}]
[null,7581,"PR740768/10К*****","Вежа міні подвійна 13х17 см","Менше 10","Декорації для акваріума",95.31,123.9,0,{"$f":"G21*I21","v":0}]
[null,7919,"PR740771/13К*****","Вежа середня подвійна 28х14 см","Менше 10","Декорації для акваріума",133.99,174.19,0,{"$f":"G22*I22","v":0}]
[null,7693,"PR740772/14К*****","Вежа чотирикутна 9х17 см","Менше 10","Декорації для акваріума",47.64,0,0,{"$f":"G23*I23","v":0}]
[null,7691,"PR740773/15К*****","Вежа шестигранна 11х22 см","Менше 10","Декорації для акваріума",64.510000000000005,0,0,{"$f":"G24*I24","v":0}]
[null,7582,"PR740774/16К*****","Вежа-тура 8х13 см","Менше 10","Декорації для акваріума",59.25,77.03,0,{"$f":"G25*I25","v":0}]
[null,7526,"PR740777/22К*****","Галеон 13х31 см","Менше 10","Декорації для акваріума",87.34,0,0,{"$f":"G26*I26","v":0}]
[null,22435,"PR740776/20К*****СПЕЦЦЕНА","Гілка 8х22 см","Менше 10","Декорації для акваріума",49.85,118.19,0,{"$f":"G27*I27","v":0}]
[null,7692,"PR740782/28К*****","Грот для черепах 29х15 см","Менше 10","Декорації для акваріума",105.77,137.5,0,{"$f":"G28*I28","v":0}]
[null,1111117551,"PR740783/51К*****","Грот зі сходами","Менше 10","Декорації для акваріума",253.62,329.71,0,{"$f":"G29*I29","v":0}]
[null,7823,"PR740780/26К","Декорація Природа Грот д/черепах д/акваріума кутова велика 18x22x12см","Більше 10","Декорації для тераріуму",407.04,528,0,{"$f":"G30*I30","v":0}]
[null,7827,"PR740781/27К","Декорація Природа Грот д/черепах для акваріума кутова мала 14x16x13см","Більше 10","Декорації для тераріуму",327.12,426,0,{"$f":"G31*I31","v":0}]
[null,8206,"PR740787/30К","Декорація Природа Дві колоди для акваріума маленька 18x20см","Більше 100","Декорації для акваріума",337.68,439,0,{"$f":"G32*I32","v":0}]
[null,22726,"PR740788/31К","Декорація Природа Дві колоди з амфорою для акваріума 23х23см","Більше 10","Декорації для акваріума",549.12,714,0,{"$f":"G33*I33","v":0}]
[null,1111155968,"PR241233","Декорація Природа Літак для акваріумів 12х9х4,5см","Немає в наявності","Декорації для акваріума",217.38,283,0,{"$f":"G34*I34","v":0}]
[null,1111155969,"PR241232","Декорація Природа Піраміда Майя для акваріума 11,5х11х8см","Більше 10","Декорації для акваріума",241.5,314,0,{"$f":"G35*I35","v":0}]
[null,7731,"PR740802/45К","Декорація Природа Скриня для акваріума 14х11см","Більше 10","Декорації для акваріума",330.24,429,0,{"$f":"G36*I36","v":0}]
[null,7747,"PR240108/46К","Декорація Природа Скриня міні для акваріума 13х8см","Більше 10","Декорації для акваріума",308.7,402,0,{"$f":"G37*I37","v":0}]
[null,1111154285,"PR241105","Декорація Природа Фігура з острова Пасхи для акваріума 5,5х10х3см","Більше 10","Декорації для акваріума",220.5,286,0,{"$f":"G38*I38","v":0}]
[null,7824,"PR740775/19К*****СПЕЦЦЕНА","Колода з сучками 24х12 см","Менше 10","Декорації для акваріума",44.63,104.1,0,{"$f":"G39*I39","v":0}]
[null,11129,"PR740792/34К*****","Колона велика 22х9 см","Менше 10","Декорації для акваріума",53.45,0,0,{"$f":"G40*I40","v":0}]
[null,11130,"PR740793/35К*****СПЕЦЦЕНА","Колона маленька 16х9 см","Менше 10","Декорації для акваріума",31.43,73.31,0,{"$f":"G41*I41","v":0}]
[null,6958,"PR740794/36К*****","Конус 28х5 см","Менше 10","Декорації для акваріума",38.08,0,0,{"$f":"G42*I42","v":0}]
[null,7589,"PR740795/37К СПЕЦЦЕНА****","Кораблик 13х10 см","Менше 10","Декорації для акваріума",43.36,101.17,0,{"$f":"G43*I43","v":0}]
[null,22509,"PR740796/38К СПЕЦЦЕНА****","Коряга з трьома сучками 13х23 см","Менше 10","Декорації для акваріума",65.349999999999994,152.46,0,{"$f":"G44*I44","v":0}]
[null,7485,"PR740798/40К СПЕЦЦЕНА****","Коряга-колода 9х20 см","Менше 10","Декорації для акваріума",35.229999999999997,82.2,0,{"$f":"G45*I45","v":0}]
[null,1111111663,"PR740799/41К*****","Ластівчине гніздо 9х12 см","Менше 10","Декорації для акваріума",83.58,108.65,0,{"$f":"G46*I46","v":0}]
[null,1111137703,"PR240107/58К*****","Печера 17х12х18 см","Менше 10","Декорації для акваріума",58.49,0,0,{"$f":"G47*I47","v":0}]
[null,7915,"ПГ 60х27Д кл.***","Підставка ПГ 60х27Д см панорамна чорна","Менше 10","Підставки та піддони",459.15,0,0,{"$f":"G48*I48","v":0}]
[null,7916,"ПГ 80х35Д кл.***","Підставка ПГ 80х35Д см панорамна чорна","Менше 10","Підставки та піддони",825.8,0,0,{"$f":"G49*I49","v":0}]
[null,1111136929,"сборн ПГ80х35Д кл.****СПЕ","Підставка ПГ 80х35Д см панорамна чорна збірна","Менше 10","Підставки та піддони",188.5,0,0,{"$f":"G50*I50","v":0}]
[null,1111131029,"ПП 31х31х110Д****","Підставка під акваріум для креветки ПП 31х31х110Д см","Менше 10","Підставки та піддони",481,0,0,{"$f":"G51*I51","v":0}]
[null,1111136841,"ПО 100х40х80Д Венге","Підставка ПО 100х40х80Д см венге","Менше 10","Підставки та піддони",1142,0,0,{"$f":"G52*I52","v":0}]
[null,1111134115,"PR740844*****","Підставка ПО 100х40х80Д см венге збірна","Менше 10","Підставки та піддони",1413.46,1837.5,0,{"$f":"G53*I53","v":0}]
[null,1111134117,"PR740852*****","Підставка ПО 120х40х80Д см венге збірна","Менше 10","Підставки та піддони",1571.95,2043.54,0,{"$f":"G54*I54","v":0}]
[null,1111134289,"сбор. ПО150х50х80ДВен****","Підставка ПО 150х50х80Д см венге збірна","Менше 10","Підставки та піддони",759,0,0,{"$f":"G55*I55","v":0}]
[null,1111115958,"PR740865*****","Підставка ПО 50х30 см чорна збірна","Менше 10","Підставки та піддони",391.03,508.34,0,{"$f":"G56*I56","v":0}]
[null,1111115931,"PR740878*****","Підставка ПО 60х30 см чорна збірна","Менше 10","Підставки та піддони",430.68,559.88,0,{"$f":"G57*I57","v":0}]
[null,11285,"ПОУ 50Д клас*****","Підставка ПОУ 50Д чорна","Менше 10","Підставки та піддони",670.95,0,0,{"$f":"G58*I58","v":0}]
[null,11235,"ПОУ 70Д клас***","Підставка ПОУ 70Д чорна","Менше 10","Підставки та піддони",1137.8,0,0,{"$f":"G59*I59","v":0}]
[null,1111133724,"PR740848*****","Підставка ПП 100х40х80Д см венге збірна","Менше 10","Підставки та піддони",1261.07,1639.39,0,{"$f":"G60*I60","v":0}]
[null,1111136844,"ПП100х40х80ДКлён","Підставка ПП 100х40х80Д см клен","Менше 10","Підставки та піддони",516.45000000000005,0,0,{"$f":"G61*I61","v":0}]
[null,1111133758,"PR740856*****","Підставка ПП 120х40х80Д см венге збірна","Менше 10","Підставки та піддони",1610.71,2093.92,0,{"$f":"G62*I62","v":0}]
[null,1111136914,"ПП 120х40х80ДКлё","Підставка ПП 120х40х80Д см клен","Менше 10","Підставки та піддони",653.20000000000005,0,0,{"$f":"G63*I63","v":0}]
[null,1111115959,"PR740870*****","Підставка ПП 50х30 см чорна збірна","Менше 10","Підставки та піддони",406.69,528.70000000000005,0,{"$f":"G64*I64","v":0}]
[null,1111136919,"ПП50х30х80ДВенге","Підставка ПП 50х30х80Д см венге","Менше 10","Підставки та піддони",549.79999999999995,0,0,{"$f":"G65*I65","v":0}]
[null,1111115643,"PR740883*****","Підставка ПП 60х30 см чорна збірна","Менше 10","Підставки та піддони",427.9,556.27,0,{"$f":"G66*I66","v":0}]
[null,1111133757,"PR740887*****СПЕЦЦЕНА","Підставка ПП 60х30х80Д см венге збірна","Менше 10","Підставки та піддони",535,963.77,0,{"$f":"G67*I67","v":0}]
[null,1111128532,"ПП 70х35Д клас***** СПЕЦЦ","Підставка ПП 70х35Д см чорна","Менше 10","Підставки та піддони",280,0,0,{"$f":"G68*I68","v":0}]
[null,11358,"ПП 80х35клас***","Підставка ПП 80х35 см чорна","Менше 10","Підставки та піддони",506,0,0,{"$f":"G69*I69","v":0}]
[null,1111115704,"PR740902 *****","Підставка ПП 80х35Д см бук збірна","Менше 10","Підставки та піддони",821.4,0,0,{"$f":"G70*I70","v":0}]
[null,11240,"ПП 80х35Д клас***","Підставка ПП 80х35Д см чорна","Менше 10","Підставки та піддони",905.65,0,0,{"$f":"G71*I71","v":0}]
[null,1111136925,"ПП80х35х80ДВенге","Підставка ПП 80х35х80Д см венге","Менше 10","Підставки та піддони",965.8,0,0,{"$f":"G72*I72","v":0}]
[null,1111133723,"PR740903*****","Підставка ПП 80х35х80Д см венге збірна","Менше 10","Підставки та піддони",1154.01,1500.21,0,{"$f":"G73*I73","v":0}]
[null,1111115711,"PR740893","Підставка Природа ПО під акваріум овальна без дверей чорна 80х35х70см","Менше 10","Підставки та піддони",2557.44,3581,0,{"$f":"G74*I74","v":0}]
[null,1111124538,"PR740839_ord","Підставка Природа ПОУ під акваріум кутова з дверима чорна 89x89x70см","Менше 10","Підставки та піддони",10888.08,14159,0,{"$f":"G75*I75","v":0}]
[null,1111115703,"PR740861","Підставка Природа ПП під акваріум пряма з дверима чорна 150x50x70см","Менше 10","Підставки та піддони",5666.1,7933,0,{"$f":"G76*I76","v":0}]
[null,1111115613,"PR740901","Підставка Природа ПП під акваріум пряма з дверима чорна 80x35x70см","Менше 10","Підставки та піддони",3145.92,4404,0,{"$f":"G77*I77","v":0}]
[null,22844,"PR240112 ***** СПЕЦЦЕНА","Підставка шестигранна чорна (до акв. АГ\\6)","Менше 10","Підставки та піддони",150,0,0,{"$f":"G78*I78","v":0}]
[null,1111187864,"PR740842","ПОДРЯП. НА КР.Підставка Природа ПО овальна з дверима чорна 100х40х70см","Менше 10","Підставки та піддони",1740.85,0,0,{"$f":"G79*I79","v":0}]
[null,1111189297,"PR740850","ПОДРЯП., ЗІБР.Підставка Природа ПО п/акв. з дверима чорна 120х40х70см","Менше 10","Підставки та піддони",2127.2399999999998,0,0,{"$f":"G80*I80","v":0}]
[null,1111189296,"PR740839_ord","ПОДРЯП.,ЗІБР.Підставка Природа п/акв.кутова з дверима чорна 89x89x70см","Менше 10","Підставки та піддони",5184.8,0,0,{"$f":"G81*I81","v":0}]
[null,1111188401,"PR740788/31К","СКОЛ Декорація Природа Дві колоди з амфорою для акваріума 23х23 см","Менше 10","Декорації для акваріума",274.56,0,0,{"$f":"G82*I82","v":0}]
[null,1111189251,"PR740850","СКОЛИ У КУТКАХ,Підставка Природа ПО п/акв. з дверима чорна 120х40х70см","Менше 10","Підставки та піддони",2127.2399999999998,0,0,{"$f":"G83*I83","v":0}]
[null,1111189250,"PR740846","СКОЛИ, Підставка Природа ПП п/акв. з дверима чорна 100x40x70см","Менше 10","Підставки та піддони",1701.07,0,0,{"$f":"G84*I84","v":0}]
[null,7525,"PR240109/47К*****СПЕЦЦЕНА","Топляк 16х35 см","Менше 10","Декорації для акваріума",68.98,160.93,0,{"$f":"G85*I85","v":0}]
[null,1111137702,"PR240110/57К СПЕЦЦЕНА****","Цихлідник 22х20х19 см","Менше 10","Декорації для акваріума",67.680000000000007,197.39,0,{"$f":"G86*I86","v":0}]

{"sheet":"Загальне замовлення","index":4,"n_rows":195,"n_cols":10,"rows_kept":195,"cut":false,"hidden":false,"merged":[]}
[]
[null,null,null,null,null,null,"suziria.ua"]
[null,null,null,null,null,null,"0 800 21 82 99"]
[null,null,null,null,null,null,"feedback@suziria.ua"]
[]
["Зображення","Код","Артикул","Номенклатура","Наявність","Категорія","Ціна опт.","Ціна РРЦ","Замовлення, шт.","Сума, грн."]
[null,null,null,null,null,null,null,null,null,{"$f":"SUM(J8:J195)","v":0}]
[null,1111126545,"PR740548 *****","Акваріум овальний 41х25х34 см 26 л","Менше 10","Акваріуми та акваріумні комплекти",160,0,{"$f":"'ProVET аква'!I$8","v":0},{"$f":"'ProVET аква'!J$8","v":0}]
[null,11070,"PR740574","Акваріум Природа кутовий 57x57x45см 85л","Менше 10","Акваріуми та акваріумні комплекти",2754.65,3581,{"$f":"'ProVET аква'!I$9","v":0},{"$f":"'ProVET аква'!J$9","v":0}]
[null,9356,"PR740575","Акваріум Природа кутовий 70x70x50см 142л","Менше 10","Акваріуми та акваріумні комплекти",4964.58,6454,{"$f":"'ProVET аква'!I$10","v":0},{"$f":"'ProVET аква'!J$10","v":0}]
[null,11025,"PR740556 (506401)","Акваріум Природа овальний 100х40х50см 190л","Менше 10","Акваріуми та акваріумні комплекти",5097.84,6627,{"$f":"'ProVET аква'!I$11","v":0},{"$f":"'ProVET аква'!J$11","v":0}]
[null,10400,"PR740557","Акваріум Природа овальний 120x40x50см 220л","Менше 10","Акваріуми та акваріумні комплекти",5877.33,7641,{"$f":"'ProVET аква'!I$12","v":0},{"$f":"'ProVET аква'!J$12","v":0}]
[null,5884,"PR740549","Акваріум Природа овальний 50x30x30см 40л","Менше 10","Акваріуми та акваріумні комплекти",1095.82,1424,{"$f":"'ProVET аква'!I$13","v":0},{"$f":"'ProVET аква'!J$13","v":0}]
[null,10974,"PR740550","Акваріум Природа овальний 50x30x40см 52л","Менше 10","Акваріуми та акваріумні комплекти",1358.29,1766,{"$f":"'ProVET аква'!I$14","v":0},{"$f":"'ProVET аква'!J$14","v":0}]
[null,5885,"PR740551","Акваріум Природа овальний 60x30x30см 54л","Більше 10","Акваріуми та акваріумні комплекти",1315.85,1710,{"$f":"'ProVET аква'!I$15","v":0},{"$f":"'ProVET аква'!J$15","v":0}]
[null,10975,"PR740552","Акваріум Природа овальний 60x30x40см 60л","Менше 10","Акваріуми та акваріумні комплекти",1554.27,2020,{"$f":"'ProVET аква'!I$16","v":0},{"$f":"'ProVET аква'!J$16","v":0}]
[null,5886,"PR740554","Акваріум Природа овальний 80x35x40см 100л","Менше 10","Акваріуми та акваріумні комплекти",2614.4499999999998,3398,{"$f":"'ProVET аква'!I$17","v":0},{"$f":"'ProVET аква'!J$17","v":0}]
[null,10976,"PR740555","Акваріум Природа овальний 80x35x45см 110л","Менше 10","Акваріуми та акваріумні комплекти",2869.2,3730,{"$f":"'ProVET аква'!I$18","v":0},{"$f":"'ProVET аква'!J$18","v":0}]
[null,6970,"PR740570","Акваріум Природа прямий 100x40x50см 200л","Менше 10","Акваріуми та акваріумні комплекти",5049.4399999999996,6565,{"$f":"'ProVET аква'!I$19","v":0},{"$f":"'ProVET аква'!J$19","v":0}]
[null,1111133642,"PR740571","Акваріум Природа прямий 100x40x60см 235л","Немає в наявності","Акваріуми та акваріумні комплекти",6225.84,8094,{"$f":"'ProVET аква'!I$20","v":0},{"$f":"'ProVET аква'!J$20","v":0}]
[null,6969,"PR740572","Акваріум Природа прямий 120x40x50см 240л","Менше 10","Акваріуми та акваріумні комплекти",5843.44,7596,{"$f":"'ProVET аква'!I$21","v":0},{"$f":"'ProVET аква'!J$21","v":0}]
[null,7257,"PR740573","Акваріум Природа прямий 150x50x60см 450л","Менше 10","Акваріуми та акваріумні комплекти",11466.64,14907,{"$f":"'ProVET аква'!I$22","v":0},{"$f":"'ProVET аква'!J$22","v":0}]
[null,4666,"PR740559","Акваріум Природа прямий 36x23x27см 22л","Більше 10","Акваріуми та акваріумні комплекти",635.65,826,{"$f":"'ProVET аква'!I$23","v":0},{"$f":"'ProVET аква'!J$23","v":0}]
[null,7859,"PR740560","Акваріум Природа прямий 40x25x34см 34л","Немає в наявності","Акваріуми та акваріумні комплекти",856.01,1113,{"$f":"'ProVET аква'!I$24","v":0},{"$f":"'ProVET аква'!J$24","v":0}]
[null,4649,"PR740562","Акваріум Природа прямий 50x30x36см 54л","Більше 10","Акваріуми та акваріумні комплекти",1048.79,1363,{"$f":"'ProVET аква'!I$25","v":0},{"$f":"'ProVET аква'!J$25","v":0}]
[null,6728,"PR740563","Акваріум Природа прямий 50x30x40см 60л","Більше 10","Акваріуми та акваріумні комплекти",1221.27,1588,{"$f":"'ProVET аква'!I$26","v":0},{"$f":"'ProVET аква'!J$26","v":0}]
[null,5560,"PR740564","Акваріум Природа прямий 60x30x36см 65л","Менше 10","Акваріуми та акваріумні комплекти",1398.48,1818,{"$f":"'ProVET аква'!I$27","v":0},{"$f":"'ProVET аква'!J$27","v":0}]
[null,6727,"PR740565","Акваріум Природа прямий 60x30x42см 72л","Більше 10","Акваріуми та акваріумні комплекти",1642.75,2136,{"$f":"'ProVET аква'!I$28","v":0},{"$f":"'ProVET аква'!J$28","v":0}]
[null,4807,"PR740567","Акваріум Природа прямий 80x35x42см 112л","Менше 10","Акваріуми та акваріумні комплекти",2376.81,3089,{"$f":"'ProVET аква'!I$29","v":0},{"$f":"'ProVET аква'!J$29","v":0}]
[null,5206,"PR740568","Акваріум Природа прямий 80x35x50см 140л","Менше 10","Акваріуми та акваріумні комплекти",2844.25,3698,{"$f":"'ProVET аква'!I$30","v":0},{"$f":"'ProVET аква'!J$30","v":0}]
[null,1111133643,"PR740569","Акваріум Природа прямий 80x35x60см 170л","Менше 10","Акваріуми та акваріумні комплекти",4344.82,5648,{"$f":"'ProVET аква'!I$31","v":0},{"$f":"'ProVET аква'!J$31","v":0}]
[null,1111160539,"PR241733","Акваріумний комплект Природа Неон Led овальний 50x30x40см 52л","Менше 10","Акваріуми та акваріумні комплекти",2591.4299999999998,3370,{"$f":"'ProVET аква'!I$32","v":0},{"$f":"'ProVET аква'!J$32","v":0}]
[null,1111160541,"PR241731","Акваріумний комплект Природа Неон Led овальний 60х30х40см 62л","Немає в наявності","Акваріуми та акваріумні комплекти",2674.16,3477,{"$f":"'ProVET аква'!I$33","v":0},{"$f":"'ProVET аква'!J$33","v":0}]
[null,1111189294,"PR241935","Б/В Кришка-світильник Природа Led Light для акваріума овальна 60х30см","Менше 10","Кришки для акваріума",632.4,0,{"$f":"'ProVET аква'!I$34","v":0},{"$f":"'ProVET аква'!J$34","v":0}]
[null,1111189295,"PR241933","Б/В Кришка-світильник Природа Led Light для акваріума овальна 80х35см","Менше 10","Кришки для акваріума",874.8,0,{"$f":"'ProVET аква'!I$35","v":0},{"$f":"'ProVET аква'!J$35","v":0}]
[null,1111189271,"PR241935","Б/В, П/РЕМ. Кришка-світильник Природа Led Light д/акв. овальна 60х30см","Менше 10","Кришки для акваріума",632.4,0,{"$f":"'ProVET аква'!I$36","v":0},{"$f":"'ProVET аква'!J$36","v":0}]
[null,1111198270,"PR740629","БЕЗ ПАК Піддон Природа/акварпрямий 150x50х3см","Менше 10","Підставки та піддони",625.32000000000005,0,{"$f":"'ProVET аква'!I$37","v":0},{"$f":"'ProVET аква'!J$37","v":0}]
[null,1111187727,"PR241959","БИТ. Піддон Природа під акваріум овальний 60×30см","Менше 10","Підставки та піддони",102,0,{"$f":"'ProVET аква'!I$38","v":0},{"$f":"'ProVET аква'!J$38","v":0}]
[null,1111189291,"PR740635","БІЛА ПОДР.НА ЛИЦ.ЧАСТ.Піддон Природа п/акв. кут. 70x70х2,5см","Менше 10","Підставки та піддони",306,0,{"$f":"'ProVET аква'!I$39","v":0},{"$f":"'ProVET аква'!J$39","v":0}]
[null,1111191750,"PR242007","Брак.завод Кришка-світильник Природа Led Light д/аквар кут89х89см","Менше 10","Кришки для акваріума",1087.5,0,{"$f":"'ProVET аква'!I$40","v":0},{"$f":"'ProVET аква'!J$40","v":0}]
[null,1111188741,"PR740620","Відсут.пак Піддон Природа під акваріум овальний 120x40х2,7 см","Менше 10","Підставки та піддони",424.32,0,{"$f":"'ProVET аква'!I$41","v":0},{"$f":"'ProVET аква'!J$41","v":0}]
[null,1111189264,"PR740620","ДЕФОРМ. ПЛАСТ. Піддон Природа п/акв. овальний 120x40х2,7 см","Менше 10","Підставки та піддони",424.32,0,{"$f":"'ProVET аква'!I$42","v":0},{"$f":"'ProVET аква'!J$42","v":0}]
[null,1111121801,"Природа*****","Кришка ЛЮКС 40х25 см ПР (люмінесцентна)","Менше 10","Кришки для акваріума",284.94,0,{"$f":"'ProVET аква'!I$43","v":0},{"$f":"'ProVET аква'!J$43","v":0}]
[null,1111140217,"PR740691*****","Кришка ЛЮКС 40х25 см пряма (люмінесцентна) НОВА","Більше 10","Кришки для акваріума",650.52,845.68,{"$f":"'ProVET аква'!I$44","v":0},{"$f":"'ProVET аква'!J$44","v":0}]
[null,1111138646,"PR740707*****","Кришка ЛЮКС 60х30 см овальна НОВА","Менше 10","Кришки для акваріума",857.92,1115.3,{"$f":"'ProVET аква'!I$45","v":0},{"$f":"'ProVET аква'!J$45","v":0}]
[null,1111138644,"PR740726*****СПЕЦЦЕНА","Кришка ЛЮКС 80х35 см пряма НОВА","Менше 10","Кришки для акваріума",819.35,1521.65,{"$f":"'ProVET аква'!I$46","v":0},{"$f":"'ProVET аква'!J$46","v":0}]
[null,1111159072,"PR241466*****","Кришка-світильник Природа LED LIGHT для акваріума 50х30 ОВ","Немає в наявності","Кришки для акваріума",702.37,1304.4100000000001,{"$f":"'ProVET аква'!I$47","v":0},{"$f":"'ProVET аква'!J$47","v":0}]
[null,1111159074,"PR241464*****","Кришка-світильник Природа LED LIGHT для акваріума 60х30 ОВ","Менше 10","Кришки для акваріума",1001.78,1302.32,{"$f":"'ProVET аква'!I$48","v":0},{"$f":"'ProVET аква'!J$48","v":0}]
[null,1111159073,"PR241465*****","Кришка-світильник Природа LED LIGHT для акваріума 60х30 ПР","Немає в наявності","Кришки для акваріума",1002,1302.5999999999999,{"$f":"'ProVET аква'!I$49","v":0},{"$f":"'ProVET аква'!J$49","v":0}]
[null,1111162260,"PR241955","Кришка-світильник Природа Led Light для акваріума кутова 57х57 см","Більше 10","Кришки для акваріума",1620,2106,{"$f":"'ProVET аква'!I$50","v":0},{"$f":"'ProVET аква'!J$50","v":0}]
[null,1111162475,"PR241958","Кришка-світильник Природа Led Light для акваріума кутова 70х70см","Більше 10","Кришки для акваріума",1618,2103.4,{"$f":"'ProVET аква'!I$51","v":0},{"$f":"'ProVET аква'!J$51","v":0}]
[null,1111162963,"PR242007","Кришка-світильник Природа Led Light для акваріума кутова 89х89 см","Менше 10","Кришки для акваріума",2175,2827.5,{"$f":"'ProVET аква'!I$52","v":0},{"$f":"'ProVET аква'!J$52","v":0}]
[null,1111159078,"PR241460","Кришка-світильник Природа Led Light для акваріума овальна 100х40 см","Менше 10","Кришки для акваріума",2494.41,3243,{"$f":"'ProVET аква'!I$53","v":0},{"$f":"'ProVET аква'!J$53","v":0}]
[null,1111159080,"PR241458","Кришка-світильник Природа Led Light для акваріума овальна 120x40см","Менше 10","Кришки для акваріума",2584.86,3360,{"$f":"'ProVET аква'!I$54","v":0},{"$f":"'ProVET аква'!J$54","v":0}]
[null,1111159082,"PR241456","Кришка-світильник Природа Led Light для акваріума овальна 150x50см","Менше 10","Кришки для акваріума",3352.68,4358,{"$f":"'ProVET аква'!I$55","v":0},{"$f":"'ProVET аква'!J$55","v":0}]
[null,1111162200,"PR241939","Кришка-світильник Природа Led Light для акваріума овальна 40х25см","Менше 10","Кришки для акваріума",810,1055,{"$f":"'ProVET аква'!I$56","v":0},{"$f":"'ProVET аква'!J$56","v":0}]
[null,1111163638,"PR241937","Кришка-світильник Природа Led Light для акваріума овальна 50х30см","Більше 10","Кришки для акваріума",1005,1307,{"$f":"'ProVET аква'!I$57","v":0},{"$f":"'ProVET аква'!J$57","v":0}]
[null,1111162326,"PR241935","Кришка-світильник Природа Led Light для акваріума овальна 60х30см","Менше 10","Кришки для акваріума",1264.8,1644,{"$f":"'ProVET аква'!I$58","v":0},{"$f":"'ProVET аква'!J$58","v":0}]
[null,1111164462,"PR241933","Кришка-світильник Природа Led Light для акваріума овальна 80х35см","Більше 10","Кришки для акваріума",1749.6,2274,{"$f":"'ProVET аква'!I$59","v":0},{"$f":"'ProVET аква'!J$59","v":0}]
[null,1111159077,"PR241461","Кришка-світильник Природа Led Light для акваріума пряма 100x40см","Менше 10","Кришки для акваріума",2495,3243,{"$f":"'ProVET аква'!I$60","v":0},{"$f":"'ProVET аква'!J$60","v":0}]
[null,1111159079,"PR241459","Кришка-світильник Природа Led Light для акваріума пряма 120x40см","Більше 10","Кришки для акваріума",2585,3361,{"$f":"'ProVET аква'!I$61","v":0},{"$f":"'ProVET аква'!J$61","v":0}]
[null,1111159081,"PR241457","Кришка-світильник Природа Led Light для акваріума пряма 150x50см","Менше 10","Кришки для акваріума",3352.5,4358,{"$f":"'ProVET аква'!I$62","v":0},{"$f":"'ProVET аква'!J$62","v":0}]
[null,1111162199,"PR241940","Кришка-світильник Природа Led Light для акваріума пряма 40х25см","Менше 10","Кришки для акваріума",810,1054,{"$f":"'ProVET аква'!I$63","v":0},{"$f":"'ProVET аква'!J$63","v":0}]
[null,1111163637,"PR241938","Кришка-світильник Природа Led Light для акваріума пряма 50х30см","Менше 10","Кришки для акваріума",1005,1307,{"$f":"'ProVET аква'!I$64","v":0},{"$f":"'ProVET аква'!J$64","v":0}]
[null,1111162325,"PR241936","Кришка-світильник Природа Led Light для акваріума пряма 60х30см","Більше 10","Кришки для акваріума",1264.8,1644,{"$f":"'ProVET аква'!I$65","v":0},{"$f":"'ProVET аква'!J$65","v":0}]
[null,1111164461,"PR241934","Кришка-світильник Природа Led Light для акваріума пряма 80х35см","Більше 10","Кришки для акваріума",1749.6,2274,{"$f":"'ProVET аква'!I$66","v":0},{"$f":"'ProVET аква'!J$66","v":0}]
[null,1111113909,"PR740687","Кришка-світильник Природа для акваріума кругла 21,5см","Більше 10","Кришки для акваріума",424.99,552,{"$f":"'ProVET аква'!I$67","v":0},{"$f":"'ProVET аква'!J$67","v":0}]
[null,1111113166,"PR740677","Кришка-світильник Природа для акваріума овальна 40х25см","Немає в наявності","Кришки для акваріума",472.74,615,{"$f":"'ProVET аква'!I$68","v":0},{"$f":"'ProVET аква'!J$68","v":0}]
[null,1111135983,"PR740685","Кришка-світильник Природа для акваріума овальна 60х30см","Більше 10","Кришки для акваріума",743.8,967,{"$f":"'ProVET аква'!I$69","v":0},{"$f":"'ProVET аква'!J$69","v":0}]
[null,1111111519,"PR740681","Кришка-світильник Природа для акваріума пряма 40х25см","Більше 10","Кришки для акваріума",472.74,615,{"$f":"'ProVET аква'!I$70","v":0},{"$f":"'ProVET аква'!J$70","v":0}]
[null,1111136683,"PR740686","Кришка-світильник Природа для акваріума пряма 60х30см","Більше 10","Кришки для акваріума",743.8,967,{"$f":"'ProVET аква'!I$71","v":0},{"$f":"'ProVET аква'!J$71","v":0}]
[null,1111197946,"PR241937","НЕ ПРАЦ-Є/БЛОК ЖИВ-НЯ Кришка-світильник ПрирLed Lightд/акв овал50х30см","Менше 10","Кришки для акваріума",502.5,0,{"$f":"'ProVET аква'!I$72","v":0},{"$f":"'ProVET аква'!J$72","v":0}]
[null,1111196647,"PR241939","НЕ ТОВ ВИД Криш-світильник Природа Led Light д/аквар. овальна 40х25см","Менше 10","Кришки для акваріума",405,0,{"$f":"'ProVET аква'!I$73","v":0},{"$f":"'ProVET аква'!J$73","v":0}]
[null,1111187101,"PR740552","НЕ ТОВ. ВИГЛ. Акваріум Природа овальний 60x30x40см 60л","Менше 10","Акваріуми та акваріумні комплекти",777.14,0,{"$f":"'ProVET аква'!I$74","v":0},{"$f":"'ProVET аква'!J$74","v":0}]
[null,1111187091,"PR740635","НЕ ТОВ.ВИГЛ.Піддон Природа під акваріум кутовий 70x70х2,5 см","Менше 10","Підставки та піддони",306,0,{"$f":"'ProVET аква'!I$75","v":0},{"$f":"'ProVET аква'!J$75","v":0}]
[null,1111195579,"PR740573","НЕЗНАЧН. СКОЛ,Акваріум Природа прямий 150x50x60см 450л","Менше 10","Акваріуми та акваріумні комплекти",5733.36,0,{"$f":"'ProVET аква'!I$76","v":0},{"$f":"'ProVET аква'!J$76","v":0}]
[null,1111188739,"PR241459","Некомплет Кришка-світ Природа Led Light д/акв пряма 120x40см","Менше 10","Кришки для акваріума",1292.5,0,{"$f":"'ProVET аква'!I$77","v":0},{"$f":"'ProVET аква'!J$77","v":0}]
[null,1111189292,"PR740615","НЕТОВ. ВИГЛ. Піддон п/акв. Природа прямий 100x40х2,9см","Менше 10","Підставки та піддони",368.9,0,{"$f":"'ProVET аква'!I$78","v":0},{"$f":"'ProVET аква'!J$78","v":0}]
[null,1111189774,"PR242071","Нетов.вигл,бруд.Піддон Природа під акваріум прямий 50х30х2,5см","Менше 10","Підставки та піддони",96.75,0,{"$f":"'ProVET аква'!I$79","v":0},{"$f":"'ProVET аква'!J$79","v":0}]
[null,1111189620,"PR740567","Нетов.вигл.Акваріум Природа прямий 80x35x42см 112л","Менше 10","Акваріуми та акваріумні комплекти",1188.4100000000001,0,{"$f":"'ProVET аква'!I$80","v":0},{"$f":"'ProVET аква'!J$80","v":0}]
[null,1111196324,"PR740629","НЕТОВ.ВИГЛ.Піддон Природа під акваріум прямий 150x50х3см","Менше 10","Підставки та піддони",625.32000000000005,0,{"$f":"'ProVET аква'!I$81","v":0},{"$f":"'ProVET аква'!J$81","v":0}]
[null,1111196325,"PR241960","НЕТОВ.ВИГЛ.Піддон Природа під акваріум прямий 60х30х2,5см","Менше 10","Підставки та піддони",102,0,{"$f":"'ProVET аква'!I$82","v":0},{"$f":"'ProVET аква'!J$82","v":0}]
[null,1111189272,"PR241940","НТВ, Б/В Кришка-світильник Природа Led Light д/акв.пряма 40х25см","Менше 10","Кришки для акваріума",405,0,{"$f":"'ProVET аква'!I$83","v":0},{"$f":"'ProVET аква'!J$83","v":0}]
[null,1111125109,"PR740580*****","Палюдаріум 80х35х48(30) см 84 л","Менше 10","Акваріуми та акваріумні комплекти",760.4,0,{"$f":"'ProVET аква'!I$84","v":0},{"$f":"'ProVET аква'!J$84","v":0}]
[null,1111123916,"PR740640_ord","Піддон під акваріум Природа кутовий 89x89см","Менше 10","Підставки та піддони",700,1300,{"$f":"'ProVET аква'!I$85","v":0},{"$f":"'ProVET аква'!J$85","v":0}]
[null,1111113632,"PR740626","Піддон під акваріум Природа овальний 150x50х3 см","Більше 10","Підставки та піддони",1250.56,1626,{"$f":"'ProVET аква'!I$86","v":0},{"$f":"'ProVET аква'!J$86","v":0}]
[null,1111113627,"PR740615","Піддон під акваріум Природа прямий 100x40х2,9см","Більше 10","Підставки та піддони",737.8,959,{"$f":"'ProVET аква'!I$87","v":0},{"$f":"'ProVET аква'!J$87","v":0}]
[null,1111114513,"PR740632","Піддон Природа під акваріум кутовий 57x57х2,2см","Більше 10","Підставки та піддони",532,691.6,{"$f":"'ProVET аква'!I$88","v":0},{"$f":"'ProVET аква'!J$88","v":0}]
[null,1111114514,"PR740635","Піддон Природа під акваріум кутовий 70x70х2,5 см","Більше 10","Підставки та піддони",612,795.6,{"$f":"'ProVET аква'!I$89","v":0},{"$f":"'ProVET аква'!J$89","v":0}]
[null,1111113630,"PR740620","Піддон Природа під акваріум овальний 120x40х2,7 см","Більше 10","Підставки та піддони",848.64,1103,{"$f":"'ProVET аква'!I$90","v":0},{"$f":"'ProVET аква'!J$90","v":0}]
[null,1111163640,"PR242070","Піддон Природа під акваріум овальний 50х30см","Менше 10","Підставки та піддони",193.5,252,{"$f":"'ProVET аква'!I$91","v":0},{"$f":"'ProVET аква'!J$91","v":0}]
[null,1111162620,"PR241959","Піддон Природа під акваріум овальний 60×30см","Більше 10","Підставки та піддони",204,265,{"$f":"'ProVET аква'!I$92","v":0},{"$f":"'ProVET аква'!J$92","v":0}]
[null,1111113626,"PR740529","Піддон Природа під акваріум овальний 80x35х2,8см","Більше 10","Підставки та піддони",363,471.9,{"$f":"'ProVET аква'!I$93","v":0},{"$f":"'ProVET аква'!J$93","v":0}]
[null,1111162202,"PR241941","Піддон Природа під акваріум овальний новий 40х25см","Більше 10","Підставки та піддони",145,188.5,{"$f":"'ProVET аква'!I$94","v":0},{"$f":"'ProVET аква'!J$94","v":0}]
[null,1111113629,"PR740623","Піддон Природа під акваріум прямий 120x40х2,7см","Менше 10","Підставки та піддони",848.64,1103,{"$f":"'ProVET аква'!I$95","v":0},{"$f":"'ProVET аква'!J$95","v":0}]
[null,1111113631,"PR740629","Піддон Природа під акваріум прямий 150x50х3см","Більше 10","Підставки та піддони",1250.56,1626,{"$f":"'ProVET аква'!I$96","v":0},{"$f":"'ProVET аква'!J$96","v":0}]
[null,1111163639,"PR242071","Піддон Природа під акваріум прямий 50х30х2,5см","Більше 10","Підставки та піддони",193.5,252,{"$f":"'ProVET аква'!I$97","v":0},{"$f":"'ProVET аква'!J$97","v":0}]
[null,1111162619,"PR241960","Піддон Природа під акваріум прямий 60х30х2,5см","Більше 10","Підставки та піддони",204,265,{"$f":"'ProVET аква'!I$98","v":0},{"$f":"'ProVET аква'!J$98","v":0}]
[null,1111113625,"PR740535","Піддон Природа під акваріум прямий 80x35х2,8см","Більше 10","Підставки та піддони",363,471.9,{"$f":"'ProVET аква'!I$99","v":0},{"$f":"'ProVET аква'!J$99","v":0}]
[null,1111162201,"PR241942","Піддон Природа під акваріум прямий новий 40х25см","Більше 10","Підставки та піддони",145,188.5,{"$f":"'ProVET аква'!I$100","v":0},{"$f":"'ProVET аква'!J$100","v":0}]
[null,1111189293,"PR740629","ПОДР. ЗНИЗУ, БРУДН.Піддон Природа п/акв. прям.150x50х3см","Менше 10","Підставки та піддони",625.28,0,{"$f":"'ProVET аква'!I$101","v":0},{"$f":"'ProVET аква'!J$101","v":0}]
[null,1111189273,"PR241456","ПОДР. Кришка-світильник Природа Led Light д/акв. овальна 150x50см","Менше 10","Кришки для акваріума",1676.34,0,{"$f":"'ProVET аква'!I$102","v":0},{"$f":"'ProVET аква'!J$102","v":0}]
[null,1111189267,"PR740640_ord","ПОДР., БРУДН. Піддон п/акв. Природа кутовий 89x89см","Менше 10","Підставки та піддони",350,0,{"$f":"'ProVET аква'!I$103","v":0},{"$f":"'ProVET аква'!J$103","v":0}]
[null,1111189268,"PR740529","ПОДР., БРУДН. Піддон Природа п/акв. овальний 80x35х2,8см","Менше 10","Підставки та піддони",181.5,0,{"$f":"'ProVET аква'!I$104","v":0},{"$f":"'ProVET аква'!J$104","v":0}]
[null,1111189263,"PR740620","ПОДР., БРУДН. Піддон Природа під акв. овальний 120x40х2,7 см","Менше 10","Підставки та піддони",424.32,0,{"$f":"'ProVET аква'!I$105","v":0},{"$f":"'ProVET аква'!J$105","v":0}]
[null,1111189262,"PR740626","ПОДР., ТРІСН.1 КУТ, Піддон п/акв. Природа овальний 150x50х3 см","Менше 10","Підставки та піддони",625.28,0,{"$f":"'ProVET аква'!I$106","v":0},{"$f":"'ProVET аква'!J$106","v":0}]
[null,1111189274,"PR241936","ПОДР.,БРУДН.Б/В Кришка-світильник Природа Led Light д/акв. пр. 60х30см","Менше 10","Кришки для акваріума",632.4,0,{"$f":"'ProVET аква'!I$107","v":0},{"$f":"'ProVET аква'!J$107","v":0}]
[null,1111189261,"PR740629","ПОДР.,ТРІСН.1 КУТ, Піддон Природа п/акв. прямий 150x50х3см","Менше 10","Підставки та піддони",625.28,0,{"$f":"'ProVET аква'!I$108","v":0},{"$f":"'ProVET аква'!J$108","v":0}]
[null,1111191962,"PR241933","ПОДРЯП Кришка-світильник Природа Led Light д/акваріума овальна 80х35см","Менше 10","Кришки для акваріума",874.8,0,{"$f":"'ProVET аква'!I$109","v":0},{"$f":"'ProVET аква'!J$109","v":0}]
[null,1111195483,"PR740609","ПОТЕРТОСТІ Піддон Природа під акваріум овальний 100x40х2,9см","Менше 10","Підставки та піддони",368.94,0,{"$f":"'ProVET аква'!I$110","v":0},{"$f":"'ProVET аква'!J$110","v":0}]
[null,1111196563,"PR740632","ПОШК. КУТ Піддон Природа під акваріум кутовий 57x57х2,2см","Менше 10","Підставки та піддони",266.04000000000002,0,{"$f":"'ProVET аква'!I$111","v":0},{"$f":"'ProVET аква'!J$111","v":0}]
[null,10111,"PR740602","Тераріум Природа для рептилій плазунів та комах скляний 60x35x40см","Менше 10","Тераріуми",4100,5330,{"$f":"'ProVET аква'!I$112","v":0},{"$f":"'ProVET аква'!J$112","v":0}]
[null,1111189290,"PR740623","ТРІСН. 1 КУТ Піддон Природа під акваріум прямий 120x40х2,7см","Менше 10","Підставки та піддони",424.32,0,{"$f":"'ProVET аква'!I$113","v":0},{"$f":"'ProVET аква'!J$113","v":0}]
[null,1111189289,"PR740535","ТРІСН.1 КУТ Піддон Природа під акваріум прямий 80x35х2,8см","Менше 10","Підставки та піддони",181.5,0,{"$f":"'ProVET аква'!I$114","v":0},{"$f":"'ProVET аква'!J$114","v":0}]
[null,1111189266,"PR740640_ord","ТРІСН.1КУТ, ПОДР. Піддон п/акв. Природа кутовий 89x89см","Менше 10","Підставки та піддони",350,0,{"$f":"'ProVET аква'!I$115","v":0},{"$f":"'ProVET аква'!J$115","v":0}]
[null,1111188738,"PR740615","Тріснута Піддон під акваріум Природа прямий 100x40х2,9см","Менше 10","Підставки та піддони",368.9,0,{"$f":"'ProVET аква'!I$116","v":0},{"$f":"'ProVET аква'!J$116","v":0}]
[null,1111127415,"PR740760/55К СПЕЦЦЕНА****","Акрополь 20х13х10 см","Менше 10","Декорації для акваріума",97.87,228.31,{"$f":"Природа!I$8","v":0},{"$f":"Природа!J$8","v":0}]
[null,1111137701,"PR240106/56К*****","Актинія 22х15х17 см","Менше 10","Декорації для акваріума",154.51,200.87,{"$f":"Природа!I$9","v":0},{"$f":"Природа!J$9","v":0}]
[null,7524,"PR740761/01К**** СПЕЦЦЕНА","Амфора велика 14х24 см","Менше 10","Декорації для акваріума",55.85,130.27000000000001,{"$f":"Природа!I$10","v":0},{"$f":"Природа!J$10","v":0}]
[null,22593,"PR740762/02К*****СПЕЦЦЕНА","Амфора єгипетська 12х17 см","Менше 10","Декорації для акваріума",49.93,116.47,{"$f":"Природа!I$11","v":0},{"$f":"Природа!J$11","v":0}]
[null,7891,"PR740763/03К*****","Амфора міні 9х11 см","Менше 10","Декорації для акваріума",64.05,83.26,{"$f":"Природа!I$12","v":0},{"$f":"Природа!J$12","v":0}]
[null,22720,"PR740764/04К*****СПЕЦЦЕНА","Амфора морська на камені 12х9 см","Менше 10","Декорації для акваріума",33.11,80.45,{"$f":"Природа!I$13","v":0},{"$f":"Природа!J$13","v":0}]
[null,7690,"PR740765/05К*****СПЕЦЦЕНА","Амфора середня 12х17 см","Менше 10","Декорації для акваріума",42.25,98.58,{"$f":"Природа!I$14","v":0},{"$f":"Природа!J$14","v":0}]
[null,1111189249,"PR740899","БЕЗ 1 СТІНКИ, Підст. Природа ПП під акваріум б/дверей чорна 80x35x70см","Менше 10","Підставки та піддони",1138.28,0,{"$f":"Природа!I$15","v":0},{"$f":"Природа!J$15","v":0}]
[null,1111187840,"PR241232","БИТ.  Декорація Природа Піраміда Майя для акваріума 11,5х11х8см","Менше 10","Декорації для акваріума",115,0,{"$f":"Природа!I$16","v":0},{"$f":"Природа!J$16","v":0}]
[null,1111187639,"PR241106","БИТ. Декорація Природа Вулкан для акваріума 11x6x8см","Менше 10","Декорації для акваріума",117.75,0,{"$f":"Природа!I$17","v":0},{"$f":"Природа!J$17","v":0}]
[null,7590,"PR740790/33К*****","Будиночок під черепицею 6х11 см","Менше 10","Декорації для акваріума",73.56,95.63,{"$f":"Природа!I$18","v":0},{"$f":"Природа!J$18","v":0}]
[null,8129,"PR740766/08К*****СПЕЦЦЕНА","Вежа велика подвійна15х26 см","Менше 10","Декорації для акваріума",95.98,223.91,{"$f":"Природа!I$19","v":0},{"$f":"Природа!J$19","v":0}]
[null,8021,"PR740769/11К*****","Вежа з горщечком 15х27 см","Менше 10","Декорації для акваріума",105.53,137.18,{"$f":"Природа!I$20","v":0},{"$f":"Природа!J$20","v":0}]
[null,7581,"PR740768/10К*****","Вежа міні подвійна 13х17 см","Менше 10","Декорації для акваріума",95.31,123.9,{"$f":"Природа!I$21","v":0},{"$f":"Природа!J$21","v":0}]
[null,7919,"PR740771/13К*****","Вежа середня подвійна 28х14 см","Менше 10","Декорації для акваріума",133.99,174.19,{"$f":"Природа!I$22","v":0},{"$f":"Природа!J$22","v":0}]
[null,7693,"PR740772/14К*****","Вежа чотирикутна 9х17 см","Менше 10","Декорації для акваріума",47.64,0,{"$f":"Природа!I$23","v":0},{"$f":"Природа!J$23","v":0}]
[null,7691,"PR740773/15К*****","Вежа шестигранна 11х22 см","Менше 10","Декорації для акваріума",64.510000000000005,0,{"$f":"Природа!I$24","v":0},{"$f":"Природа!J$24","v":0}]
[null,7582,"PR740774/16К*****","Вежа-тура 8х13 см","Менше 10","Декорації для акваріума",59.25,77.03,{"$f":"Природа!I$25","v":0},{"$f":"Природа!J$25","v":0}]
[null,7526,"PR740777/22К*****","Галеон 13х31 см","Менше 10","Декорації для акваріума",87.34,0,{"$f":"Природа!I$26","v":0},{"$f":"Природа!J$26","v":0}]
[null,22435,"PR740776/20К*****СПЕЦЦЕНА","Гілка 8х22 см","Менше 10","Декорації для акваріума",49.85,118.19,{"$f":"Природа!I$27","v":0},{"$f":"Природа!J$27","v":0}]
[null,7692,"PR740782/28К*****","Грот для черепах 29х15 см","Менше 10","Декорації для акваріума",105.77,137.5,{"$f":"Природа!I$28","v":0},{"$f":"Природа!J$28","v":0}]
[null,1111117551,"PR740783/51К*****","Грот зі сходами","Менше 10","Декорації для акваріума",253.62,329.71,{"$f":"Природа!I$29","v":0},{"$f":"Природа!J$29","v":0}]
[null,7823,"PR740780/26К","Декорація Природа Грот д/черепах д/акваріума кутова велика 18x22x12см","Більше 10","Декорації для тераріуму",407.04,528,{"$f":"Природа!I$30","v":0},{"$f":"Природа!J$30","v":0}]
[null,7827,"PR740781/27К","Декорація Природа Грот д/черепах для акваріума кутова мала 14x16x13см","Більше 10","Декорації для тераріуму",327.12,426,{"$f":"Природа!I$31","v":0},{"$f":"Природа!J$31","v":0}]
[null,8206,"PR740787/30К","Декорація Природа Дві колоди для акваріума маленька 18x20см","Більше 100","Декорації для акваріума",337.68,439,{"$f":"Природа!I$32","v":0},{"$f":"Природа!J$32","v":0}]
[null,22726,"PR740788/31К","Декорація Природа Дві колоди з амфорою для акваріума 23х23см","Більше 10","Декорації для акваріума",549.12,714,{"$f":"Природа!I$33","v":0},{"$f":"Природа!J$33","v":0}]
[null,1111155968,"PR241233","Декорація Природа Літак для акваріумів 12х9х4,5см","Немає в наявності","Декорації для акваріума",217.38,283,{"$f":"Природа!I$34","v":0},{"$f":"Природа!J$34","v":0}]
[null,1111155969,"PR241232","Декорація Природа Піраміда Майя для акваріума 11,5х11х8см","Більше 10","Декорації для акваріума",241.5,314,{"$f":"Природа!I$35","v":0},{"$f":"Природа!J$35","v":0}]
[null,7731,"PR740802/45К","Декорація Природа Скриня для акваріума 14х11см","Більше 10","Декорації для акваріума",330.24,429,{"$f":"Природа!I$36","v":0},{"$f":"Природа!J$36","v":0}]
[null,7747,"PR240108/46К","Декорація Природа Скриня міні для акваріума 13х8см","Більше 10","Декорації для акваріума",308.7,402,{"$f":"Природа!I$37","v":0},{"$f":"Природа!J$37","v":0}]
[null,1111154285,"PR241105","Декорація Природа Фігура з острова Пасхи для акваріума 5,5х10х3см","Більше 10","Декорації для акваріума",220.5,286,{"$f":"Природа!I$38","v":0},{"$f":"Природа!J$38","v":0}]
[null,7824,"PR740775/19К*****СПЕЦЦЕНА","Колода з сучками 24х12 см","Менше 10","Декорації для акваріума",44.63,104.1,{"$f":"Природа!I$39","v":0},{"$f":"Природа!J$39","v":0}]
[null,11129,"PR740792/34К*****","Колона велика 22х9 см","Менше 10","Декорації для акваріума",53.45,0,{"$f":"Природа!I$40","v":0},{"$f":"Природа!J$40","v":0}]
[null,11130,"PR740793/35К*****СПЕЦЦЕНА","Колона маленька 16х9 см","Менше 10","Декорації для акваріума",31.43,73.31,{"$f":"Природа!I$41","v":0},{"$f":"Природа!J$41","v":0}]
[null,6958,"PR740794/36К*****","Конус 28х5 см","Менше 10","Декорації для акваріума",38.08,0,{"$f":"Природа!I$42","v":0},{"$f":"Природа!J$42","v":0}]
[null,7589,"PR740795/37К СПЕЦЦЕНА****","Кораблик 13х10 см","Менше 10","Декорації для акваріума",43.36,101.17,{"$f":"Природа!I$43","v":0},{"$f":"Природа!J$43","v":0}]
[null,22509,"PR740796/38К СПЕЦЦЕНА****","Коряга з трьома сучками 13х23 см","Менше 10","Декорації для акваріума",65.349999999999994,152.46,{"$f":"Природа!I$44","v":0},{"$f":"Природа!J$44","v":0}]
[null,7485,"PR740798/40К СПЕЦЦЕНА****","Коряга-колода 9х20 см","Менше 10","Декорації для акваріума",35.229999999999997,82.2,{"$f":"Природа!I$45","v":0},{"$f":"Природа!J$45","v":0}]
[null,1111111663,"PR740799/41К*****","Ластівчине гніздо 9х12 см","Менше 10","Декорації для акваріума",83.58,108.65,{"$f":"Природа!I$46","v":0},{"$f":"Природа!J$46","v":0}]
[null,1111137703,"PR240107/58К*****","Печера 17х12х18 см","Менше 10","Декорації для акваріума",58.49,0,{"$f":"Природа!I$47","v":0},{"$f":"Природа!J$47","v":0}]
[null,7915,"ПГ 60х27Д кл.***","Підставка ПГ 60х27Д см панорамна чорна","Менше 10","Підставки та піддони",459.15,0,{"$f":"Природа!I$48","v":0},{"$f":"Природа!J$48","v":0}]
[null,7916,"ПГ 80х35Д кл.***","Підставка ПГ 80х35Д см панорамна чорна","Менше 10","Підставки та піддони",825.8,0,{"$f":"Природа!I$49","v":0},{"$f":"Природа!J$49","v":0}]
[null,1111136929,"сборн ПГ80х35Д кл.****СПЕ","Підставка ПГ 80х35Д см панорамна чорна збірна","Менше 10","Підставки та піддони",188.5,0,{"$f":"Природа!I$50","v":0},{"$f":"Природа!J$50","v":0}]
[null,1111131029,"ПП 31х31х110Д****","Підставка під акваріум для креветки ПП 31х31х110Д см","Менше 10","Підставки та піддони",481,0,{"$f":"Природа!I$51","v":0},{"$f":"Природа!J$51","v":0}]
[null,1111136841,"ПО 100х40х80Д Венге","Підставка ПО 100х40х80Д см венге","Менше 10","Підставки та піддони",1142,0,{"$f":"Природа!I$52","v":0},{"$f":"Природа!J$52","v":0}]
[null,1111134115,"PR740844*****","Підставка ПО 100х40х80Д см венге збірна","Менше 10","Підставки та піддони",1413.46,1837.5,{"$f":"Природа!I$53","v":0},{"$f":"Природа!J$53","v":0}]
[null,1111134117,"PR740852*****","Підставка ПО 120х40х80Д см венге збірна","Менше 10","Підставки та піддони",1571.95,2043.54,{"$f":"Природа!I$54","v":0},{"$f":"Природа!J$54","v":0}]
[null,1111134289,"сбор. ПО150х50х80ДВен****","Підставка ПО 150х50х80Д см венге збірна","Менше 10","Підставки та піддони",759,0,{"$f":"Природа!I$55","v":0},{"$f":"Природа!J$55","v":0}]
[null,1111115958,"PR740865*****","Підставка ПО 50х30 см чорна збірна","Менше 10","Підставки та піддони",391.03,508.34,{"$f":"Природа!I$56","v":0},{"$f":"Природа!J$56","v":0}]
[null,1111115931,"PR740878*****","Підставка ПО 60х30 см чорна збірна","Менше 10","Підставки та піддони",430.68,559.88,{"$f":"Природа!I$57","v":0},{"$f":"Природа!J$57","v":0}]
[null,11285,"ПОУ 50Д клас*****","Підставка ПОУ 50Д чорна","Менше 10","Підставки та піддони",670.95,0,{"$f":"Природа!I$58","v":0},{"$f":"Природа!J$58","v":0}]
[null,11235,"ПОУ 70Д клас***","Підставка ПОУ 70Д чорна","Менше 10","Підставки та піддони",1137.8,0,{"$f":"Природа!I$59","v":0},{"$f":"Природа!J$59","v":0}]
[null,1111133724,"PR740848*****","Підставка ПП 100х40х80Д см венге збірна","Менше 10","Підставки та піддони",1261.07,1639.39,{"$f":"Природа!I$60","v":0},{"$f":"Природа!J$60","v":0}]
[null,1111136844,"ПП100х40х80ДКлён","Підставка ПП 100х40х80Д см клен","Менше 10","Підставки та піддони",516.45000000000005,0,{"$f":"Природа!I$61","v":0},{"$f":"Природа!J$61","v":0}]
[null,1111133758,"PR740856*****","Підставка ПП 120х40х80Д см венге збірна","Менше 10","Підставки та піддони",1610.71,2093.92,{"$f":"Природа!I$62","v":0},{"$f":"Природа!J$62","v":0}]
[null,1111136914,"ПП 120х40х80ДКлё","Підставка ПП 120х40х80Д см клен","Менше 10","Підставки та піддони",653.20000000000005,0,{"$f":"Природа!I$63","v":0},{"$f":"Природа!J$63","v":0}]
[null,1111115959,"PR740870*****","Підставка ПП 50х30 см чорна збірна","Менше 10","Підставки та піддони",406.69,528.70000000000005,{"$f":"Природа!I$64","v":0},{"$f":"Природа!J$64","v":0}]
[null,1111136919,"ПП50х30х80ДВенге","Підставка ПП 50х30х80Д см венге","Менше 10","Підставки та піддони",549.79999999999995,0,{"$f":"Природа!I$65","v":0},{"$f":"Природа!J$65","v":0}]
[null,1111115643,"PR740883*****","Підставка ПП 60х30 см чорна збірна","Менше 10","Підставки та піддони",427.9,556.27,{"$f":"Природа!I$66","v":0},{"$f":"Природа!J$66","v":0}]
[null,1111133757,"PR740887*****СПЕЦЦЕНА","Підставка ПП 60х30х80Д см венге збірна","Менше 10","Підставки та піддони",535,963.77,{"$f":"Природа!I$67","v":0},{"$f":"Природа!J$67","v":0}]
[null,1111128532,"ПП 70х35Д клас***** СПЕЦЦ","Підставка ПП 70х35Д см чорна","Менше 10","Підставки та піддони",280,0,{"$f":"Природа!I$68","v":0},{"$f":"Природа!J$68","v":0}]
[null,11358,"ПП 80х35клас***","Підставка ПП 80х35 см чорна","Менше 10","Підставки та піддони",506,0,{"$f":"Природа!I$69","v":0},{"$f":"Природа!J$69","v":0}]
[null,1111115704,"PR740902 *****","Підставка ПП 80х35Д см бук збірна","Менше 10","Підставки та піддони",821.4,0,{"$f":"Природа!I$70","v":0},{"$f":"Природа!J$70","v":0}]
[null,11240,"ПП 80х35Д клас***","Підставка ПП 80х35Д см чорна","Менше 10","Підставки та піддони",905.65,0,{"$f":"Природа!I$71","v":0},{"$f":"Природа!J$71","v":0}]
[null,1111136925,"ПП80х35х80ДВенге","Підставка ПП 80х35х80Д см венге","Менше 10","Підставки та піддони",965.8,0,{"$f":"Природа!I$72","v":0},{"$f":"Природа!J$72","v":0}]
[null,1111133723,"PR740903*****","Підставка ПП 80х35х80Д см венге збірна","Менше 10","Підставки та піддони",1154.01,1500.21,{"$f":"Природа!I$73","v":0},{"$f":"Природа!J$73","v":0}]
[null,1111115711,"PR740893","Підставка Природа ПО під акваріум овальна без дверей чорна 80х35х70см","Менше 10","Підставки та піддони",2557.44,3581,{"$f":"Природа!I$74","v":0},{"$f":"Природа!J$74","v":0}]
[null,1111124538,"PR740839_ord","Підставка Природа ПОУ під акваріум кутова з дверима чорна 89x89x70см","Менше 10","Підставки та піддони",10888.08,14159,{"$f":"Природа!I$75","v":0},{"$f":"Природа!J$75","v":0}]
[null,1111115703,"PR740861","Підставка Природа ПП під акваріум пряма з дверима чорна 150x50x70см","Менше 10","Підставки та піддони",5666.1,7933,{"$f":"Природа!I$76","v":0},{"$f":"Природа!J$76","v":0}]
[null,1111115613,"PR740901","Підставка Природа ПП під акваріум пряма з дверима чорна 80x35x70см","Менше 10","Підставки та піддони",3145.92,4404,{"$f":"Природа!I$77","v":0},{"$f":"Природа!J$77","v":0}]
[null,22844,"PR240112 ***** СПЕЦЦЕНА","Підставка шестигранна чорна (до акв. АГ\\6)","Менше 10","Підставки та піддони",150,0,{"$f":"Природа!I$78","v":0},{"$f":"Природа!J$78","v":0}]
[null,1111187864,"PR740842","ПОДРЯП. НА КР.Підставка Природа ПО овальна з дверима чорна 100х40х70см","Менше 10","Підставки та піддони",1740.85,0,{"$f":"Природа!I$79","v":0},{"$f":"Природа!J$79","v":0}]
[null,1111189297,"PR740850","ПОДРЯП., ЗІБР.Підставка Природа ПО п/акв. з дверима чорна 120х40х70см","Менше 10","Підставки та піддони",2127.2399999999998,0,{"$f":"Природа!I$80","v":0},{"$f":"Природа!J$80","v":0}]
[null,1111189296,"PR740839_ord","ПОДРЯП.,ЗІБР.Підставка Природа п/акв.кутова з дверима чорна 89x89x70см","Менше 10","Підставки та піддони",5184.8,0,{"$f":"Природа!I$81","v":0},{"$f":"Природа!J$81","v":0}]
[null,1111188401,"PR740788/31К","СКОЛ Декорація Природа Дві колоди з амфорою для акваріума 23х23 см","Менше 10","Декорації для акваріума",274.56,0,{"$f":"Природа!I$82","v":0},{"$f":"Природа!J$82","v":0}]
[null,1111189251,"PR740850","СКОЛИ У КУТКАХ,Підставка Природа ПО п/акв. з дверима чорна 120х40х70см","Менше 10","Підставки та піддони",2127.2399999999998,0,{"$f":"Природа!I$83","v":0},{"$f":"Природа!J$83","v":0}]
[null,1111189250,"PR740846","СКОЛИ, Підставка Природа ПП п/акв. з дверима чорна 100x40x70см","Менше 10","Підставки та піддони",1701.07,0,{"$f":"Природа!I$84","v":0},{"$f":"Природа!J$84","v":0}]
[null,7525,"PR240109/47К*****СПЕЦЦЕНА","Топляк 16х35 см","Менше 10","Декорації для акваріума",68.98,160.93,{"$f":"Природа!I$85","v":0},{"$f":"Природа!J$85","v":0}]
[null,1111137702,"PR240110/57К СПЕЦЦЕНА****","Цихлідник 22х20х19 см","Менше 10","Декорації для акваріума",67.680000000000007,197.39,{"$f":"Природа!I$86","v":0},{"$f":"Природа!J$86","v":0}]